bitfinex/quotes_SOLUSD_20251216
["timestamp","ask_amount","ask_price","bid_price","bid_amount"]
[1765897094504,8.5,128.55,128.52,20.94589539]
[1765897094704,16.27912779,128.55,128.52,7.78086776]
[1765897094989,8.5,128.55,128.52,8.4708]
[1765897095512,8.5,128.55,128.52,21.63582763]
[1765897095812,8.5,128.55,128.52,8.4708]
[1765897096025,8.5,128.55,128.52,7.7808]
[1765897096395,16.27920098,128.55,128.51,17.28118415]
[1765897096710,8.5,128.55,128.51,30.44621178]
[1765897097016,16.27915052,128.55,128.51,49.89995078]
[1765897097425,8.5,128.55,128.52,22.66497255]
[1765897097627,8.5,128.55,128.52,21.97497255]
[1765897097818,8.5,128.55,128.54,9.49994492]
[1765897098026,116.37502763,128.6,128.55,0.69]
[1765897098027,16.98629552,128.6,128.55,0.69]
[1765897098198,0.71,128.59,128.55,0.69]
[1765897098501,49.59252558,128.6,128.55,8.46883604]
[1765897099525,8.5,128.6,128.56,8.80994492]
[1765897099743,7.77468684,128.63,128.56,8.80994492]
[1765897099744,16.98468684,128.63,128.56,8.80994492]
[1765897099934,16.27468684,128.63,128.59,0.69]
[1765897100130,16.27468684,128.63,128.6,8.80994492]
[1765897100131,8.5,128.63,128.6,8.80994492]
[1765897100425,0.81,128.68,128.63,8.46423618]
[1765897100624,0.71,128.66,128.62,8.80994492]
[1765897100933,0.1,128.68,128.66,0.69]
[1765897101225,0.1,128.68,128.66,13.16610565]
[1765897101428,0.1,128.68,128.67,22.66605057]
[1765897102424,0.1,128.68,128.67,30.43786995]
[1765897102805,0.1,128.68,128.67,43.48496115]
[1765897103130,0.1,128.68,128.67,0.69]
[1765897103321,0.1,128.68,128.66,7.77221782]
[1765897103498,0.1,128.68,128.65,8.80994492]
[1765897103826,13.16610565,128.67,128.6,0.69]
[1765897104004,0.71,128.64,128.59,8.46623849]
[1765897104197,13.87610565,128.61,128.55,13.16610565]
[1765897104396,7.77604976,128.6,128.55,7.7789193]
[1765897104609,0.71,128.6,128.56,8.80994492]
[1765897104809,0.71,128.6,128.55,21.63502495]
[1765897105214,0.71,128.6,128.56,9.49994492]
[1765897105416,8.4850352,128.62,128.56,22.66605057]
[1765897106520,8.4850352,128.62,128.57,8.46786419]
[1765897106837,16.98446009,128.63,128.58,9.49994492]
[1765897107127,8.5,128.63,128.59,13.85610565]
[1765897107297,8.5,128.63,128.59,0.69]
[1765897107298,16.2742785,128.63,128.59,0.69]
[1765897107503,16.2742785,128.63,128.58,21.97605057]
[1765897107827,16.2742785,128.63,128.59,0.69]
[1765897108305,16.2742785,128.63,128.6,0.69]
[1765897108499,8.5,128.63,128.6,0.69]
[1765897109129,20.14019955,128.67,128.6,0.69]
[1765897109130,7.77279641,128.66,128.61,8.80994492]
[1765897109429,7.77202339,128.67,128.63,8.80994492]
[1765897109634,7.77202339,128.67,128.61,22.66605057]
[1765897109927,20.93812904,128.67,128.62,0.69]
[1765897110117,7.77202339,128.67,128.62,0.69]
[1765897110511,0.71,128.65,128.61,8.80994492]
[1765897110899,26.92319685,128.65,128.6,7.7758706]
[1765897111202,26.92319685,128.65,128.6,0.69]
[1765897111597,26.92319685,128.65,128.57,40.99092837]
[1765897111598,0.71,128.62,128.56,13.85610565]
[1765897111819,0.71,128.59,128.55,8.80994492]
[1765897112231,13.87610565,128.58,128.52,13.16610565]
[1765897112411,0.71,128.56,128.52,7.78070818]
[1765897112612,0.71,128.56,128.52,20.94681383]
[1765897112933,0.71,128.56,128.52,21.63681383]
[1765897113102,0.71,128.56,128.51,29.75736217]
[1765897113307,0.71,128.56,128.51,16.59125652]
[1765897113732,0.71,128.56,128.51,30.45736217]
[1765897113900,0.71,128.56,128.51,16.59125652]
[1765897114105,0.69,128.55,128.51,16.59125652]
[1765897114326,21.63530062,128.55,128.5,8.50190005]
[1765897114535,8.5,128.56,128.52,0.72]
[1765897114736,9.19,128.56,128.52,0.72]
[1765897114910,9.19,128.56,128.51,17.31136694]
[1765897115535,8.5,128.56,128.52,9.52994492]
[1765897115830,8.5,128.56,128.52,22.69605057]
[1765897116536,8.5,128.56,128.52,21.97605057]
[1765897116705,8.5,128.56,128.52,22.69605057]
[1765897116913,16.27688722,128.59,128.54,13.88610565]
[1765897117129,13.16610565,128.64,128.58,13.16610565]
[1765897117437,0.69,128.63,128.57,22.69605057]
[1765897117607,8.46480264,128.63,128.58,7.77725929]
[1765897117918,8.46480264,128.63,128.58,8.49725929]
[1765897118119,8.46480264,128.63,128.57,16.58774658]
[1765897118120,0.69,128.62,128.57,16.58774658]
[1765897118318,7.77480264,128.63,128.58,0.72]
[1765897118524,8.46480264,128.63,128.58,13.88610565]
[1765897118706,0.69,128.62,128.58,13.88610565]
[1765897118909,0.69,128.62,128.57,30.47385223]
[1765897119235,20.94090829,128.63,128.56,7.77838872]
[1765897119236,21.66610565,128.61,128.56,7.77838872]
[1765897119531,0.69,128.6,128.56,7.77838872]
[1765897119744,0.69,128.6,128.56,20.94449437]
[1765897119912,0.69,128.6,128.56,21.66449437]
[1765897120112,9.19,128.61,128.56,41.11066736]
[1765897120434,0.69,128.6,128.56,41.11066736]
[1765897120811,8.5,128.61,128.56,41.11066736]
[1765897121121,22.2370912,128.64,128.59,13.88610565]
[1765897121437,0.69,128.63,128.59,13.88610565]
[1765897121638,0.69,128.63,128.59,13.16610565]
[1765897121805,0.69,128.63,128.6,7.77604976]
[1765897122232,0.69,128.63,128.59,20.94250495]
[1765897122444,0.69,128.63,128.58,29.75293338]
[1765897122648,0.69,128.63,128.59,7.77663163]
[1765897122825,0.69,128.63,128.59,20.94273728]
[1765897123032,16.96381211,128.64,128.59,21.66273728]
[1765897123231,8.5,128.64,128.61,0.72]
[1765897123541,9.19,128.64,128.59,27.21826783]
[1765897123737,0.69,128.63,128.59,29.7526822]
[1765897124051,0.1,128.68,128.62,21.97605057]
[1765897124052,0.79,128.68,128.62,21.97605057]
[1765897124251,0.79,128.68,128.64,13.16610565]
[1765897124460,0.1,128.68,128.66,13.16610565]
[1765897125457,0.1,128.68,128.65,13.88610565]
[1765897125746,0.1,128.68,128.63,20.9400811]
[1765897125747,0.79,128.68,128.63,20.9400811]
[1765897125950,0.79,128.68,128.64,21.65968232]
[1765897126327,21.76610565,128.68,128.62,13.16610565]
[1765897126540,0.69,128.66,128.61,13.16610565]
[1765897126731,0.69,128.66,128.61,20.94140364]
[1765897126934,0.69,128.66,128.61,7.77529799]
[1765897127241,0.69,128.66,128.61,20.94140364]
[1765897127441,0.69,128.66,128.62,7.77477669]
[1765897127755,8.46259836,128.66,128.62,13.16610565]
[1765897127960,0.69,128.65,128.61,20.94115888]
[1765897128127,0.69,128.65,128.61,21.66115888]
[1765897128328,7.77259836,128.66,128.61,13.88610565]
[1765897128529,7.77259836,128.66,128.63,7.77416313]
[1765897128530,0.69,128.66,128.63,7.77416313]
[1765897128828,7.77201326,128.67,128.63,0.72]
[1765897129349,16.37131383,128.68,128.64,0.72]
[1765897129541,24.46332321,128.68,128.64,0.72]
[1765897129856,17.06131383,128.68,128.64,8.49323661]
[1765897130080,0.1,128.68,128.66,8.09200938]
[1765897130263,0.1,128.68,128.67,17.6219543]
[1765897130430,0.1,128.68,128.64,35.70731621]
[1765897130431,0.1,128.68,128.65,9.52994492]
[1765897130631,0.1,128.68,128.65,16.9019543]
[1765897130856,0.1,128.68,128.67,17.6219543]
[1765897131661,0.1,128.68,128.66,17.6219543]
[1765897131958,0.1,128.68,128.67,8.49181938]
[1765897132143,0.1,128.68,128.66,17.30217729]
[1765897132339,0.1,128.68,128.67,8.49181938]
[1765897132731,0.1,128.68,128.67,16.58382876]
[1765897134161,0.1,128.68,128.67,0.72]
[1765897134744,0.1,128.68,128.67,16.58382876]
[1765897135061,0.1,128.68,128.67,0.72]
[1765897135248,0.1,128.68,128.66,7.77216654]
[1765897135560,0.1,128.68,128.67,8.49181938]
[1765897135725,0.1,128.68,128.67,25.39377368]
[1765897136262,0.1,128.68,128.67,17.3017643]
[1765897136632,0.1,128.68,128.65,8.5]
[1765897136834,0.1,128.68,128.65,16.58272633]
[1765897137154,0.1,128.68,128.66,8.4923836]
[1765897137562,0.1,128.68,128.67,16.58382876]
[1765897138162,0.1,128.68,128.67,25.39377368]
[1765897140067,13.7370912,128.75,128.68,0.72]
[1765897140372,8.45706207,128.75,128.71,8.4890288]
[1765897140538,111.79,128.76,128.72,8.80994492]
[1765897140741,111.1,128.76,128.72,9.52994492]
[1765897140958,102.6,128.76,128.72,8.80994492]
[1765897141158,0.69,128.75,128.71,7.7690288]
[1765897141443,8.55655689,128.76,128.71,8.4890288]
[1765897141942,0.1,128.76,128.72,8.80994492]
[1765897142145,0.1,128.76,128.75,17.6219543]
[1765897142349,0.1,128.76,128.75,33.88894459]
[1765897142644,0.1,128.79,128.78,13.0470912]
[1765897142855,0.1,128.79,128.78,39.1690455]
[1765897143070,0.1,128.79,128.78,30.6690455]
[1765897143252,0.1,128.79,128.78,30.35703612]
[1765897143448,0.1,128.79,128.78,30.6690455]
[1765897143968,0.1,128.79,128.78,8.80994492]
[1765897144464,0.1,128.79,128.77,25.38759736]
[1765897144972,0.1,128.79,128.78,0.72]
[1765897145171,0.1,128.79,128.77,16.57558798]
[1765897145353,0.79,128.79,128.7,0.99999999]
[1765897145544,0.79,128.79,128.75,8.80994492]
[1765897145752,0.1,128.79,128.77,16.57566487]
[1765897145963,0.1,128.79,128.77,25.38767425]
[1765897146167,0.1,128.79,128.78,8.81200938]
[1765897146369,0.1,128.79,128.78,7.76518092]
[1765897146564,0.1,128.79,128.78,8.48518092]
[1765897146867,0.1,128.79,128.78,15.8571903]
[1765897147078,0.1,128.79,128.78,7.76518092]
[1765897147278,0.1,128.79,128.77,24.66753075]
[1765897147477,0.1,128.79,128.77,25.38753075]
[1765897147866,0.1,128.79,128.76,7.76615558]
[1765897148051,0.79,128.79,128.75,7.76686142]
[1765897148381,0.69,128.77,128.74,13.0470912]
[1765897148683,0.69,128.77,128.73,24.66970526]
[1765897148684,0.69,128.76,128.72,7.76855163]
[1765897149179,15.95679795,128.79,128.74,8.48744463]
[1765897149483,0.69,128.78,128.74,7.76744463]
[1765897149975,0.1,128.79,128.75,9.52994492]
[1765897150276,0.1,128.79,128.78,7.76518092]
[1765897150455,0.1,128.79,128.78,16.57512584]
[1765897150869,0.1,128.79,128.75,13.7670912]
[1765897151078,0.79,128.79,128.74,7.76746865]
[1765897151281,0.1,128.79,128.76,17.6219543]
[1765897151586,0.1,128.79,128.76,8.80994492]
[1765897151755,0.1,128.79,128.74,17.6219543]
[1765897151953,0.79,128.79,128.75,8.09200938]
[1765897152263,0.1,128.79,128.77,7.76576398]
[1765897153084,0.1,128.79,128.78,17.6219543]
[1765897153266,0.1,128.79,128.77,7.76576398]
[1765897153465,0.1,128.79,128.78,8.80994492]
[1765897153788,0.1,128.79,128.78,17.6219543]
[1765897154168,0.1,128.79,128.77,7.76576398]
[1765897155471,0.1,128.79,128.77,27.18022386]
[1765897155678,0.1,128.79,128.77,7.76576398]
[1765897155988,0.1,128.79,128.76,7.76612992]
[1765897156187,8.88200938,128.79,128.75,16.57654935]
[1765897156372,0.69,128.77,128.73,19.41987393]
[1765897156694,0.69,128.76,128.73,7.768197]
[1765897157458,0.69,128.77,128.74,8.80994492]
[1765897157662,102.5,128.78,128.74,9.52994492]
[1765897157892,102.5,128.78,128.74,17.6219543]
[1765897158095,102.5,128.78,128.75,0.72]
[1765897158308,8.6,128.79,128.76,8.80994492]
[1765897158461,0.1,128.79,128.77,7.76578395]
[1765897158775,0.1,128.79,128.78,9.52994492]
[1765897159291,0.1,128.79,128.77,27.18024383]
[1765897159292,0.69,128.78,128.77,7.76578395]
[1765897159489,0.1,128.79,128.77,7.76578395]
[1765897159689,0.79,128.79,128.76,7.76619252]
[1765897159907,0.1,128.79,128.76,27.18216021]
[1765897160592,0.79,128.79,128.76,27.18216021]
[1765897161297,0.1,128.79,128.77,8.80994492]
[1765897161895,0.1,128.79,128.77,9.52994492]
[1765897162508,0.1,128.79,128.78,7.76518092]
[1765897162714,0.1,128.79,128.75,8.80994492]
[1765897163012,0.1,128.79,128.76,7.76614752]
[1765897163223,0.69,128.78,128.75,7.76685413]
[1765897163518,0.1,128.79,128.77,7.7657772]
[1765897164317,0.1,128.79,128.75,37.03884411]
[1765897164318,102.5,128.78,128.75,7.76679901]
[1765897164511,103.19,128.78,128.75,7.76679901]
[1765897164696,0.69,128.77,128.74,16.57725863]
[1765897164898,0.69,128.77,128.74,7.76731371]
[1765897166894,0.69,128.75,128.71,8.80994492]
[1765897167092,0.69,128.75,128.72,7.768527]
[1765897167420,110.59200938,128.76,128.73,16.57805132]
[1765897167421,103.19,128.76,128.73,16.57805132]
[1765897167717,103.19,128.76,128.73,7.7681064]
[1765897167718,0.69,128.75,128.73,7.7681064]
[1765897168015,103.19,128.76,128.73,7.7681064]
[1765897168216,0.69,128.75,128.72,7.76834192]
[1765897168419,8.5,128.76,128.73,8.80994492]
[1765897168932,0.69,128.75,128.72,7.76880049]
[1765897169228,9.19,128.76,128.72,7.76880049]
[1765897169995,9.19,128.76,128.72,35.27269824]
[1765897170396,9.19,128.76,128.72,27.19080173]
[1765897171132,16.95650656,128.76,128.72,27.19080173]
[1765897171317,16.95650656,128.76,128.72,7.76880049]
[1765897171824,0.69,128.75,128.72,7.76880049]
[1765897172519,16.95650656,128.76,128.71,35.99432107]
[1765897172719,9.19,128.76,128.72,8.80994492]
[1765897172924,16.95647791,128.76,128.72,8.80994492]
[1765897173220,9.19,128.76,128.72,8.80994492]
[1765897173593,0.71,128.75,128.72,8.80994492]
[1765897174599,13.0470912,128.77,128.74,9.49994492]
[1765897174898,22.2370912,128.77,128.73,27.1886895]
[1765897175099,0.69,128.76,128.73,7.768197]
[1765897175524,22.2370912,128.77,128.73,8.458197]
[1765897175727,22.2370912,128.77,128.73,17.26814192]
[1765897176103,22.2370912,128.77,128.73,16.57814192]
[1765897176296,0.69,128.76,128.72,7.76854905]
[1765897176522,0.69,128.73,128.69,8.80994492]
[1765897176717,8.08189651,128.71,128.65,7.77273295]
[1765897176915,9.19,128.7,128.67,7.77146523]
[1765897177197,8.5,128.7,128.67,7.77146523]
[1765897177397,8.5,128.7,128.68,7.77119961]
[1765897178003,9.19,128.7,128.68,7.77119961]
[1765897178205,8.08189651,128.69,128.64,7.77317957]
[1765897178522,0.69,128.68,128.66,7.77237674]
[1765897178725,9.19,128.7,128.66,8.80994492]
[1765897179031,0.69,128.69,128.65,35.28749308]
[1765897179330,0.69,128.69,128.65,27.20559657]
[1765897179726,0.69,128.69,128.65,7.77302759]
[1765897180739,0.69,128.68,128.65,7.77302759]
[1765897180906,0.69,128.68,128.64,16.58331506]
[1765897181632,0.69,128.66,128.64,7.77352074]
[1765897182013,0.69,128.66,128.63,9.00994492]
[1765897182212,8.5,128.67,128.63,9.00994492]
[1765897182407,9.19,128.67,128.63,9.69994492]
[1765897182712,8.5,128.67,128.64,7.7735505]
[1765897182912,9.19,128.67,128.64,7.7735505]
[1765897183708,0.69,128.66,128.64,7.7735505]
[1765897183913,0.69,128.66,128.63,16.78390093]
[1765897185335,9.19,128.67,128.63,44.99138789]
[1765897185705,9.19,128.67,128.64,17.58184143]
[1765897185706,8.5,128.67,128.64,17.58184143]
[1765897186912,0.69,128.69,128.65,7.77302759]
[1765897187115,0.69,128.69,128.65,35.97749308]
[1765897187524,0.69,128.69,128.66,8.80994492]
[1765897187817,9.19,128.7,128.66,8.80994492]
[1765897188028,0.69,128.69,128.66,8.80994492]
[1765897188210,8.5,128.7,128.66,8.80994492]
[1765897188411,0.69,128.69,128.66,8.80994492]
[1765897188928,0.69,128.69,128.67,7.77181938]
[1765897190929,8.5,128.7,128.67,7.77181938]
[1765897191240,9.19,128.7,128.67,7.77181938]
[1765897192146,8.5,128.7,128.67,7.77181938]
[1765897192320,0.69,128.69,128.66,7.7721448]
[1765897192639,0.69,128.69,128.66,16.58208972]
[1765897192842,0.69,128.69,128.66,49.15502087]
[1765897193142,8.5,128.72,128.69,0.69]
[1765897193515,0.69,128.71,128.68,13.14187255]
[1765897194727,8.5,128.72,128.68,13.14187255]
[1765897194728,9.19,128.72,128.69,8.80994492]
[1765897194944,9.19,128.72,128.69,13.14187255]
[1765897195153,8.5,128.72,128.7,7.77000777]
[1765897195439,8.5,128.72,128.7,21.60188032]
[1765897195620,9.19,128.74,128.71,8.80994492]
[1765897196651,8.5,128.74,128.72,13.83187255]
[1765897196948,8.5,128.76,128.73,13.83187255]
[1765897197117,8.5,128.76,128.74,7.76759359]
[1765897197531,0.69,128.77,128.74,20.90946614]
[1765897197735,16.95518605,128.78,128.74,20.90946614]
[1765897197956,0.69,128.77,128.74,20.90946614]
[1765897198161,8.5,128.78,128.74,20.90946614]
[1765897198458,0.1,128.79,128.76,13.83187255]
[1765897198863,7.8646536,128.79,128.76,0.69]
[1765897199041,8.5546536,128.79,128.75,29.71862015]
[1765897199439,0.69,128.78,128.71,0.79]
[1765897199637,9.19,128.77,128.73,21.60001108]
[1765897200048,0.69,128.76,128.71,28.2329156]
[1765897200346,40.41797113,128.79,128.76,8.80994492]
[1765897200347,0.1,128.79,128.76,8.80994492]
[1765897200543,0.1,128.79,128.78,21.95181747]
[1765897200869,0.69,128.78,128.75,20.9088235]
[1765897201041,0.1,128.79,128.76,8.4562393]
[1765897201237,0.1,128.79,128.75,0.69]
[1765897201444,0.79,128.79,128.76,29.71803668]
[1765897201643,0.69,128.78,128.75,7.766944]
[1765897201839,8.6,128.79,128.76,7.76634248]
[1765897202075,0.1,128.79,128.78,13.14187255]
[1765897202271,0.1,128.79,128.78,22.64181747]
[1765897202864,0.1,128.79,128.78,8.80994492]
[1765897203048,0.1,128.79,128.78,29.71699839]
[1765897203249,0.1,128.79,128.78,30.40699839]
[1765897203480,0.1,128.84,128.83,8.80994492]
[1765897203652,0.1,128.84,128.83,18.02994492]
[1765897203843,0.1,128.85,128.84,9.52994492]
[1765897204039,0.1,128.85,128.83,13.14187255]
[1765897204345,0.81,128.85,128.82,13.14187255]
[1765897204543,0.71,128.84,128.81,13.14187255]
[1765897204762,0.81,128.85,128.82,8.80994492]
[1765897205366,0.1,128.85,128.82,30.43439907]
[1765897205541,0.1,128.85,128.82,29.71439907]
[1765897205741,0.71,128.84,128.79,13.14187255]
[1765897205981,0.71,128.84,128.79,8.80994492]
[1765897206141,0.71,128.84,128.8,20.90561639]
[1765897206345,13.14187255,128.84,128.79,8.80994492]
[1765897206546,26.18896375,128.82,128.75,0.82]
[1765897206746,0.71,128.79,128.75,0.1]
[1765897206969,13.14187255,128.79,128.73,20.9098561]
[1765897207191,0.71,128.74,128.7,13.14187255]
[1765897207344,8.47699029,128.75,128.71,13.14187255]
[1765897207742,8.5,128.76,128.71,13.86187255]
[1765897207969,0.71,128.75,128.72,8.80994492]
[1765897208146,8.5,128.76,128.72,21.95181747]
[1765897208351,8.94749716,128.84,128.7,27.19463915]
[1765897208352,21.6470912,128.8,128.75,13.14187255]
[1765897208577,21.6470912,128.8,128.75,0.72]
[1765897208578,29.31107645,128.8,128.75,0.72]
[1765897208871,8.5,128.8,128.77,13.14187255]
[1765897209067,19.5044298,128.84,128.79,13.86187255]
[1765897209068,0.71,128.83,128.79,13.86187255]
[1765897209240,0.71,128.83,128.8,7.76397515]
[1765897209575,16.97157981,128.84,128.8,20.9058477]
[1765897209742,16.97157981,128.84,128.79,19.4106554]
[1765897209743,0.71,128.83,128.79,20.90634291]
[1765897209944,0.71,128.83,128.78,21.95181747]
[1765897210166,0.71,128.83,128.79,20.90626304]
[1765897210675,0.71,128.83,128.78,29.71681139]
[1765897210852,0.71,128.82,128.78,7.76499392]
[1765897211041,0.71,128.82,128.75,19.41667881]
[1765897211042,13.0470912,128.81,128.77,8.80994492]
[1765897211372,13.0470912,128.81,128.69,0.99999999]
[1765897211373,0.71,128.78,128.74,7.76736906]
[1765897211570,7.76457799,128.79,128.74,7.76736906]
[1765897211571,0.71,128.79,128.74,7.76736906]
[1765897211775,0.71,128.77,128.73,16.57813553]
[1765897212088,0.71,128.79,128.74,29.71918172]
[1765897212240,16.26426244,128.8,128.74,49.13816571]
[1765897212454,21.5470912,128.8,128.76,21.95181747]
[1765897212649,21.5470912,128.8,128.76,22.67181747]
[1765897212650,8.5,128.8,128.76,22.67181747]
[1765897213290,8.5,128.8,128.77,7.76578395]
[1765897213660,9.21,128.8,128.76,20.9080146]
[1765897213906,0.71,128.79,128.75,16.5767887]
[1765897214059,0.71,128.79,128.75,29.71866125]
[1765897214261,0.71,128.79,128.73,20.14018456]
[1765897214262,13.14187255,128.78,128.73,7.76779039]
[1765897214480,0.71,128.76,128.72,16.57857719]
[1765897214655,9.21,128.76,128.72,16.57857719]
[1765897214969,9.21,128.76,128.74,13.14187255]
[1765897214970,8.5,128.76,128.74,13.14187255]
[1765897215177,8.5,128.76,128.74,8.48732814]
[1765897215353,8.5,128.76,128.74,7.76732814]
[1765897215560,8.5,128.76,128.73,29.71981819]
[1765897215781,0.71,128.76,128.73,16.57794564]
[1765897216219,0.71,128.75,128.72,16.57848069]
[1765897216490,0.71,128.73,128.69,0.1]
[1765897216790,0.71,128.71,128.67,7.87147535]
[1765897217110,0.71,128.72,128.67,7.77146151]
[1765897217405,0.71,128.71,128.67,8.80994492]
[1765897217707,30.12031504,128.73,128.68,0.72]
[1765897217890,16.97844249,128.73,128.69,0.72]
[1765897218060,30.12031504,128.73,128.67,8.80994492]
[1765897218258,16.26844249,128.73,128.69,0.72]
[1765897218691,16.97844249,128.73,128.69,8.49047137]
[1765897218869,16.26820907,128.73,128.69,20.91234392]
[1765897219069,16.26820907,128.73,128.67,21.85703612]
[1765897219070,13.85187255,128.72,128.67,16.58163351]
[1765897219272,13.14187255,128.72,128.67,8.80994492]
[1765897219470,0.71,128.72,128.68,0.72]
[1765897219689,0.71,128.72,128.67,29.72325389]
[1765897220024,48.83057412,128.73,128.67,29.72325389]
[1765897220025,16.26820907,128.73,128.68,0.72]
[1765897220230,8.5,128.73,128.69,20.91240833]
[1765897220376,8.5,128.73,128.7,13.86187255]
[1765897220576,8.5,128.73,128.69,27.19706464]
[1765897220577,8.5,128.73,128.69,8.49053578]
[1765897220805,8.5,128.73,128.7,0.72]
[1765897221001,30.12017449,128.73,128.68,8.49094816]
[1765897221172,16.97830194,128.73,128.69,0.72]
[1765897221376,16.97830194,128.73,128.69,8.49056992]
[1765897221572,13.85187255,128.72,128.67,8.80994492]
[1765897221773,0.71,128.71,128.67,0.72]
[1765897222193,49.54066699,128.73,128.67,13.86187255]
[1765897222391,13.14187255,128.7,128.63,0.92]
[1765897222599,8.48129652,128.68,128.64,17.30322535]
[1765897222805,16.27086832,128.69,128.65,0.72]
[1765897223118,9.21,128.69,128.65,13.86187255]
[1765897223280,0.71,128.68,128.64,16.58322535]
[1765897223611,0.71,128.67,128.63,7.97411522]
[1765897223792,16.98066546,128.69,128.64,21.63534968]
[1765897223988,0.71,128.68,128.64,8.49347713]
[1765897224192,13.14187255,128.67,128.63,0.2]
[1765897224412,0.71,128.65,128.63,0.2]
[1765897224788,7.77200545,128.67,128.63,7.97412097]
[1765897225113,9.21,128.66,128.63,0.2]
[1765897225415,22.35187255,128.66,128.63,0.2]
[1765897225618,0.71,128.65,128.63,0.2]
[1765897225794,8.5,128.66,128.63,0.2]
[1765897226117,48.84238697,128.7,128.65,13.14187255]
[1765897226294,0.71,128.69,128.64,13.14187255]
[1765897226617,7.77121541,128.68,128.64,20.91516533]
[1765897226823,8.48087333,128.69,128.65,21.95181747]
[1765897227127,8.48087333,128.69,128.65,8.80994492]
[1765897227306,7.77087333,128.69,128.64,20.91516533]
[1765897227619,0.71,128.68,128.64,7.77329278]
[1765897227924,0.71,128.66,128.63,0.2]
[1765897228301,0.71,128.64,128.63,0.2]
[1765897228489,13.85187255,128.64,128.63,0.2]
[1765897228821,43.17259559,128.64,128.63,0.2]
[1765897229023,21.5470912,128.64,128.63,0.2]
[1765897229403,8.5,128.64,128.63,0.2]
[1765897229808,16.27363184,128.64,128.63,0.2]
[1765897230022,16.98363184,128.64,128.63,0.2]
[1765897230217,9.21,128.64,128.63,0.2]
[1765897230434,8.5,128.64,128.63,0.2]
[1765897230727,13.24187255,128.69,128.63,22.15181747]
[1765897230929,8.5,128.68,128.65,21.95181747]
[1765897231109,0.1,128.69,128.67,22.67181747]
[1765897231314,8.6,128.73,128.69,8.80994492]
[1765897231497,0.1,128.74,128.71,13.14187255]
[1765897231697,0.71,128.74,128.7,13.14187255]
[1765897231997,8.5,128.73,128.68,13.14187255]
[1765897232213,0.71,128.72,128.68,13.14187255]
[1765897232592,8.5,128.73,128.69,13.14187255]
[1765897232792,16.97839925,128.73,128.69,20.91205188]
[1765897233121,16.97839925,128.73,128.69,7.77017933]
[1765897233292,16.97839925,128.73,128.69,20.91205188]
[1765897233489,0.71,128.72,128.67,16.58133738]
[1765897233806,0.67,128.71,128.67,13.14187255]
[1765897234004,0.67,128.71,128.66,13.14187255]
[1765897234209,0.71,128.7,128.66,7.77218294]
[1765897234540,0.71,128.7,128.66,20.91405549]
[1765897234703,8.4804226,128.7,128.66,20.91405549]
[1765897234913,7.7704226,128.7,128.65,21.57462879]
[1765897235210,7.7704226,128.7,128.66,13.14187255]
[1765897235413,0.71,128.69,128.63,16.78412373]
[1765897235621,8.5,128.68,128.63,22.15181747]
[1765897235923,0.71,128.67,128.64,7.77360012]
[1765897236289,8.5,128.68,128.63,0.2]
[1765897236518,0.71,128.66,128.63,0.2]
[1765897237014,0.71,128.66,128.63,7.97421457]
[1765897237400,9.21,128.68,128.64,21.95881705]
[1765897237606,9.21,128.68,128.64,22.61881705]
[1765897237825,16.98141956,128.68,128.64,22.61881705]
[1765897238131,8.5,128.68,128.64,22.61881705]
[1765897238304,9.21,128.68,128.64,22.61881705]
[1765897238629,9.21,128.68,128.64,21.95881705]
[1765897238927,16.97927062,128.72,128.67,13.14887213]
[1765897239137,0.71,128.71,128.66,30.39124049]
[1765897240432,29.31636182,128.72,128.67,13.14887213]
[1765897240641,8.5,128.72,128.69,13.80887213]